fUSD/lending_fUSD_20250620
["ID","MTS","AMOUNT","RATE_DAILY","PERIOD"]
[366705497,1750415567420,-398.759128,0.000273,7]
[366705498,1750415567429,-398.759128,0.000273,7]
[366705499,1750415567438,-178.815455,0.000273,7]
[366705500,1750415567447,-178.815455,0.000273,7]
[366705501,1750415567457,-346.871646,0.000273,7]
[366705502,1750415567466,-346.871646,0.000273,7]
[366705503,1750415567475,-151.0,0.000273,7]
[366705504,1750415567484,-532.770792,0.000273,7]
[366705505,1750415567494,-532.7708,0.000273,7]
[366705506,1750415567503,-166.142536,0.00027302,7]
[366705507,1750415567513,-166.142536,0.00027302,7]
[366705508,1750415567523,-775.47665243,0.00027314,16]
[366705509,1750415567533,-151.0,0.00027331,7]
[366705510,1750415567542,-330.739152,0.00027331,7]
[366705511,1750415567551,-330.739152,0.00027331,7]
[366705512,1750415567561,-151.416715,0.00027331,7]
[366705513,1750415567571,-267.958731,0.00027331,7]
[366705514,1750415567580,-267.958731,0.00027331,7]
[366705515,1750415567590,-4415.901403,0.00027331,2]
[366705516,1750415567601,-8953.945683,0.00027331,2]
[366705517,1750415567611,-99436.3930164,0.00027331,2]
[366705518,1750415567621,-36180.7717963,0.00027331,2]
[366705519,1750415567631,-3226.032784,0.00027331,2]
[366705520,1750415567640,-776283.8591994,0.0002735,15]
[366705521,1750415567649,-325.210147,0.0002735,7]
[366705522,1750415567659,-325.210147,0.0002735,7]
[366705523,1750415567669,-151.0,0.0002735,7]
[366705524,1750415567678,-204.379099,0.0002735,7]
[366705525,1750415567687,-204.379099,0.0002735,7]
[366705526,1750415567697,-151.0,0.0002735,7]
[366705527,1750415567706,-1127.639614,0.0002735,7]
[366705528,1750415567716,-166.142536,0.0002735,7]
[366705529,1750415567725,-166.142533,0.0002735,7]
[366705530,1750415567735,-398.759128,0.0002735,7]
[366705531,1750415567746,-398.75913,0.0002735,7]
[366705532,1750415567755,-178.815455,0.0002735,7]
[366705533,1750415567765,-178.815448,0.0002735,7]
[366705534,1750415567773,-346.871646,0.0002735,7]
[366705535,1750415567783,-346.871641,0.0002735,7]
[366705536,1750415567793,-2000.0,0.00027363,2]
[366705537,1750415567803,-855.14,0.00027365,4]
[366705538,1750415567813,-490.0,0.00027365,4]
[366705539,1750415567822,-490.0,0.00027365,4]
[366705540,1750415567832,-941.29,0.00027365,4]
[366705541,1750415567841,-1474.28,0.00027365,4]
[366705542,1750415567850,-710.39,0.00027375,4]
[366705543,1750415567860,-2657.88,0.00027375,4]
[366705544,1750415567870,-678.91,0.00027375,4]
[366705545,1750415567879,-951.97,0.00027375,4]
[366705546,1750415567889,-934.95,0.00027375,4]
[366705547,1750415567898,-982.82,0.00027375,4]
[366705548,1750415567908,-490.0,0.00027375,4]
[366705549,1750415567918,-490.0,0.00027375,4]
[366705550,1750415567927,-1196.7,0.00027375,4]
[366705551,1750415567937,-905.13,0.00027375,4]
[366705552,1750415567947,-500.80156317,0.00027375,4]
[366705553,1750415567957,-733.67,0.00027375,4]
[366705554,1750415567966,-623.14,0.00027375,4]
[366705555,1750415567976,-858.58,0.00027375,4]
[366705556,1750415567985,-4996.22,0.00027375,4]
[366705557,1750415567995,-1411.02,0.00027375,4]
[366705558,1750415568005,-454.55176492,0.00027375,4]
[366705559,1750415568015,-490.0,0.00027375,4]
[366705560,1750415568025,-566.53,0.00027375,4]
[366705561,1750415568036,-673.04,0.00027375,4]
[366705562,1750415568046,-1000.0,0.00027375,4]
[366705563,1750415568056,-560.81,0.00027375,4]
[366705564,1750415568067,-5470.75,0.00027375,4]
[366705565,1750415568076,-490.0,0.00027375,4]
[366705566,1750415568087,-448.60265192,0.00027375,2]
[366705567,1750415568098,-2781.24,0.00027375,4]
[366705568,1750415568109,-608.76,0.00027375,4]
[366705569,1750415568119,-622.46,0.00027375,4]
[366705570,1750415568129,-2671.47,0.00027375,4]
[366705571,1750415568139,-490.0,0.00027375,4]
[366705572,1750415568151,-807.14,0.00027375,4]
[366705573,1750415568164,-2352.4634634,0.00027377,2]
[366705574,1750415568174,-5206.3247134,0.00027377,2]
[366705575,1750415568183,-59047.359226,0.00027377,2]
[366705576,1750415568195,-21484.8805806,0.00027377,2]
[366705577,1750415568205,-1940.2383035,0.00027377,2]
[366705578,1750415568215,-490.0,0.00027386,4]
[366705579,1750415568225,-490.0,0.00027386,4]
[366705580,1750415568236,-490.0,0.00027386,4]
[366705581,1750415568246,-490.0,0.00027386,4]
[366705582,1750415568256,-490.0,0.00027386,4]
[366705583,1750415568266,-490.0,0.00027386,4]
[366705584,1750415568277,-525.64,0.00027386,4]
[366705585,1750415568287,-490.0,0.00027386,4]
[366705586,1750415568297,-490.0,0.00027386,4]
[366705587,1750415568308,-490.0,0.00027386,4]
[366705588,1750415568318,-490.0,0.00027386,4]
[366705589,1750415568328,-824.86,0.00027386,4]
[366705590,1750415568337,-490.0,0.00027386,4]
[366705591,1750415568347,-490.0,0.00027386,4]
[366705592,1750415568357,-490.0,0.00027386,4]
[366705593,1750415568366,-490.0,0.00027386,4]
[366705594,1750415568376,-1042.35,0.00027386,4]
[366705595,1750415568386,-2063.423116,0.00027386,4]
[366705596,1750415568396,-159.469271,0.00027386,4]
[366705597,1750415568405,-1129.83,0.00027386,4]
[366705598,1750415568415,-490.0,0.00027386,4]
[366705599,1750415568424,-490.0,0.00027386,4]
[366705600,1750415568435,-2980.629608,0.00027386,4]
[366705601,1750415568444,-1443.11,0.00027386,4]
[366705602,1750415568454,-6813.75,0.00027386,4]
[366705603,1750415568464,-490.0,0.00027386,4]
[366705604,1750415568474,-977.73,0.00027386,4]
[366705605,1750415568483,-1060.66,0.00027386,4]
[366705606,1750415568493,-1271.04,0.00027386,4]
[366705607,1750415568502,-490.0,0.00027386,4]
[366705608,1750415568513,-1687.17,0.00027386,4]
[366705609,1750415568522,-490.0,0.00027386,4]
[366705610,1750415568532,-1425.44,0.00027386,4]
[366705611,1750415568542,-490.0,0.00027386,4]
[366705612,1750415568552,-1260.23,0.00027386,4]
[366705613,1750415568561,-535.62,0.00027386,4]
[366705614,1750415568571,-600.47,0.00027386,4]
[366705615,1750415568580,-490.0,0.00027386,4]
[366705616,1750415568590,-7447.5,0.00027386,4]
[366705617,1750415568600,-490.0,0.00027386,4]
[366705618,1750415568610,-490.0,0.00027386,4]
[366705619,1750415568619,-490.0,0.00027386,4]
[366705620,1750415568629,-998.98,0.00027386,4]
[366705621,1750415568638,-490.0,0.00027386,4]
[366705622,1750415568648,-1377.1,0.00027386,4]
[366705623,1750415568658,-490.0,0.00027386,4]
[366705624,1750415568667,-4861.36,0.00027386,4]
[366705625,1750415568677,-1977.29,0.00027386,4]
[366705626,1750415568687,-490.0,0.00027386,4]
[366705627,1750415568697,-1276.4,0.00027386,4]
[366705628,1750415568707,-2235.26,0.00027386,4]
[366705629,1750415568717,-2488.9,0.00027386,4]
[366705630,1750415568727,-1190.82,0.00027386,4]
[366705631,1750415568736,-712.91,0.00027386,4]
[366705632,1750415568746,-1879.2,0.00027386,4]
[366705633,1750415568756,-490.0,0.00027386,4]
[366705634,1750415568766,-3348.43,0.00027386,4]
[366705635,1750415568776,-2145.92,0.00027386,4]
[366705636,1750415568786,-3119.56,0.00027386,4]
[366705637,1750415568796,-3273.4,0.00027386,4]
[366705638,1750415568805,-490.0,0.00027387,4]
[366705639,1750415568816,-490.0,0.00027387,4]
[366705640,1750415568825,-490.0,0.00027387,4]
[366705641,1750415568835,-490.0,0.00027387,4]
[366705642,1750415568845,-490.0,0.00027387,4]
[366705643,1750415568854,-1480.37,0.00027387,4]
[366705644,1750415568864,-490.0,0.00027387,4]
[366705645,1750415568874,-1643.1,0.00027387,4]
[366705646,1750415568883,-490.0,0.00027387,4]
[366705647,1750415568892,-417.36539424,0.00027387,4]
[366705648,1750415568902,-565.51,0.00027387,4]
[366705649,1750415568912,-492.45,0.00027387,4]
[366705650,1750415568922,-2032.33,0.00027387,4]
[366705651,1750415568932,-880.4,0.00027387,4]
[366705652,1750415568941,-298.5858502,0.00027387,4]
[366705653,1750415568951,-490.0,0.00027387,4]
[366705654,1750415568961,-1088.85,0.00027387,4]
[366705655,1750415568971,-490.0,0.00027387,4]
[366705656,1750415568980,-848.08,0.00027387,4]
[366705657,1750415568990,-912.78,0.00027387,4]
[366705658,1750415569000,-1634.09,0.00027387,4]
[366705659,1750415569010,-1838.84,0.00027387,4]
[366705660,1750415569020,-895.29,0.00027387,4]
[366705661,1750415569029,-818.8,0.00027387,4]
[366705662,1750415569039,-669.38,0.00027387,4]
[366705663,1750415569049,-490.0,0.00027387,4]
[366705664,1750415569059,-1627.01,0.00027387,4]
[366705665,1750415569069,-490.0,0.00027387,4]
[366705666,1750415569079,-490.0,0.00027387,4]
[366705667,1750415569090,-490.0,0.00027387,4]
[366705668,1750415569099,-1078.58,0.00027387,4]
[366705669,1750415569110,-994.67,0.00027387,4]
[366705670,1750415569120,-771.65,0.00027387,4]
[366705671,1750415569130,-490.0,0.00027387,4]
[366705672,1750415569140,-224.3607482,0.00027387,4]
[366705673,1750415569150,-490.0,0.00027387,4]
[366705674,1750415569159,-694.41,0.00027387,4]
[366705675,1750415569169,-679.99,0.00027387,4]
[366705676,1750415569179,-490.0,0.00027387,4]
[366705677,1750415569189,-2362.55,0.00027387,4]
[366705678,1750415569198,-490.0,0.00027387,4]
[366705679,1750415569209,-490.0,0.00027387,4]
[366705680,1750415569219,-490.0,0.00027387,4]
[366705681,1750415569228,-592.8,0.00027387,4]
[366705682,1750415569238,-490.0,0.00027387,4]
[366705683,1750415569247,-490.0,0.00027387,4]
[366705684,1750415569258,-490.0,0.00027387,4]
[366705685,1750415569269,-542.79,0.00027387,4]
[366705686,1750415569278,-1385.22,0.00027387,4]
[366705687,1750415569289,-1591.3,0.00027387,4]
[366705688,1750415569299,-490.0,0.00027387,4]
[366705689,1750415569309,-1073.69,0.00027387,4]
[366705690,1750415569319,-490.0,0.00027387,4]
[366705691,1750415569328,-616.36,0.00027387,4]
[366705692,1750415569338,-490.0,0.00027387,4]
[366705693,1750415569348,-490.0,0.00027387,4]
[366705694,1750415569357,-490.0,0.00027387,4]
[366705695,1750415569368,-583.29,0.00027387,4]
[366705696,1750415569377,-1175.68,0.00027387,4]
[366705697,1750415569387,-1312.24,0.00027387,4]
[366705698,1750415569397,-1363.77,0.00027387,4]
[366705699,1750415569407,-490.0,0.00027387,4]
[366705700,1750415569417,-770.8,0.00027387,4]
[366705701,1750415569427,-997.01,0.00027387,4]
[366705702,1750415569437,-989.39,0.00027387,4]
[366705703,1750415569447,-567.86,0.00027387,4]
[366705704,1750415569456,-1096.04,0.00027387,4]
[366705705,1750415569466,-1520.45,0.00027387,4]
[366705706,1750415569475,-490.0,0.00027387,4]
[366705707,1750415569485,-805.39,0.00027387,4]
[366705708,1750415569495,-490.0,0.00027387,4]
[366705709,1750415569505,-490.0,0.00027387,4]
[366705710,1750415569517,-596.59,0.00027387,4]
[366705711,1750415569526,-1428.58,0.00027387,4]
[366705712,1750415569536,-490.0,0.00027387,4]
[366705713,1750415569545,-490.0,0.00027387,4]
[366705714,1750415569555,-5382.53,0.00027387,4]
[366705715,1750415569565,-490.0,0.00027387,4]
[366705716,1750415569575,-703.96,0.00027387,4]
[366705717,1750415569584,-1669.54,0.00027387,4]
[366705718,1750415569595,-1601.56,0.00027387,4]
[366705719,1750415569604,-2721.61,0.00027387,4]
[366705720,1750415569615,-490.0,0.00027387,4]
[366705721,1750415569625,-741.54,0.00027387,4]
[366705722,1750415569635,-669.76,0.00027387,4]
[366705723,1750415569644,-1225.01,0.00027387,4]
[366705724,1750415569654,-2422.36,0.00027387,4]
[366705725,1750415569663,-1005.68,0.00027387,4]
[366705726,1750415569674,-490.0,0.00027387,4]
[366705727,1750415569683,-2138.59,0.00027387,4]
[366705728,1750415569693,-490.0,0.00027387,4]
[366705729,1750415569702,-998.16,0.00027387,4]
[366705730,1750415569712,-4396.87,0.00027387,4]
[366705731,1750415569722,-933.76,0.00027387,4]
[366705732,1750415569732,-897.22,0.00027387,4]
[366705733,1750415569742,-1489.74,0.00027387,4]
[366705734,1750415569752,-2632.99,0.00027387,4]
[366705735,1750415569762,-490.0,0.00027387,4]
[366705736,1750415569772,-2115.45,0.00027387,4]
[366705737,1750415569781,-969.59,0.00027387,4]
[366705738,1750415569792,-1788.12,0.00027387,4]
[366705739,1750415569802,-587.84,0.00027387,4]
[366705740,1750415569812,-490.0,0.00027387,4]
[366705741,1750415569821,-747.47,0.00027387,4]
[366705742,1750415569832,-629.05,0.00027387,4]
[366705743,1750415569842,-1158.39,0.00027387,4]
[366705744,1750415569852,-4900.18,0.00027387,4]
[366705745,1750415569862,-490.0,0.00027387,4]
[366705746,1750415569872,-1552.28,0.00027387,4]
[366705747,1750415569882,-540.28,0.00027387,4]
[366705748,1750415569892,-1986.49,0.00027387,4]
[366705749,1750415569902,-2142.56,0.00027387,4]
[366705750,1750415569914,-675.46,0.00027387,4]
[366705751,1750415569924,-2131.24,0.00027387,4]
[366705752,1750415569935,-1335.47,0.00027387,4]
[366705753,1750415569945,-894.67,0.00027387,4]
[366705754,1750415569956,-3901.98,0.00027387,4]
[366705755,1750415569966,-694.78,0.00027387,4]
[366705756,1750415570144,-748.02,0.00027387,4]
[366705757,1750415570157,-2210.45,0.00027387,4]
[366705758,1750415570168,-1823.65,0.00027387,4]
[366705759,1750415570178,-1839.21,0.00027387,4]
[366705760,1750415570188,-951.3,0.00027387,4]
[366705761,1750415570198,-490.0,0.00027387,4]
[366705762,1750415570208,-828.87,0.00027387,4]
[366705763,1750415570218,-828.66,0.00027387,4]
[366705764,1750415570229,-2336.71,0.00027387,4]
[366705765,1750415570239,-490.0,0.00027387,4]
[366705766,1750415570249,-1193.56,0.00027387,4]
[366705767,1750415570260,-1201.91,0.00027387,4]
[366705768,1750415570271,-1533.32,0.00027387,4]
[366705769,1750415570281,-2402.13,0.00027387,4]
[366705770,1750415570291,-2054.14,0.00027387,4]
[366705771,1750415570301,-1310.9,0.00027387,4]
[366705772,1750415570311,-1342.75211416,0.0002739,120]
[366705773,1750415570322,-506.48634861,0.0002739,28]
[366705774,1750415570332,-117905.85616112,0.00027396,2]
[366705775,1750415570342,-117905.85616112,0.00027396,2]
[366705776,1750415570352,-117905.85616112,0.00027396,2]
[366705777,1750415570362,-490.0,0.00027397,4]
[366705778,1750415570373,-222.94495163,0.00027397,4]
[366705779,1750415570383,-490.0,0.00027397,4]
[366705780,1750415570393,-490.0,0.00027397,4]
[366705781,1750415570403,-490.0,0.00027397,4]
[366705782,1750415570413,-490.0,0.00027397,4]
[366705783,1750415570423,-490.0,0.00027397,4]
[366705784,1750415570433,-490.0,0.00027397,4]
[366705785,1750415570443,-490.0,0.00027397,4]
[366705786,1750415570453,-490.0,0.00027397,4]
[366705787,1750415570463,-490.0,0.00027397,4]
[366705788,1750415570473,-490.0,0.00027397,4]
[366705789,1750415570482,-490.0,0.00027397,4]
[366705790,1750415570493,-536.23,0.00027397,4]
[366705791,1750415570502,-302.81017716,0.00027397,4]
[366705792,1750415570513,-494.82036058,0.00027397,4]
[366705793,1750415570523,-490.0,0.00027397,4]
[366705794,1750415570533,-686.65,0.00027397,4]
[366705795,1750415570543,-490.0,0.00027397,4]
[366705796,1750415570553,-897.84,0.00027397,4]
[366705797,1750415570562,-793.14,0.00027397,4]
[366705798,1750415570572,-224.48136736,0.00027397,4]
[366705799,1750415570582,-656.19,0.00027397,4]
[366705800,1750415570592,-490.0,0.00027397,4]
[366705801,1750415570602,-624.06,0.00027397,4]
[366705802,1750415570612,-490.0,0.00027397,4]
[366705803,1750415570622,-568.83,0.00027397,4]
[366705804,1750415570632,-402.69,0.00027397,4]
[366705805,1750415570642,-490.0,0.00027397,4]
[366705806,1750415570652,-490.0,0.00027397,4]
[366705807,1750415570661,-697.89,0.00027397,4]
[366705808,1750415570671,-490.0,0.00027397,4]
[366705809,1750415570681,-490.0,0.00027397,4]
[366705810,1750415570691,-490.0,0.00027397,4]
[366705811,1750415570701,-724.36,0.00027397,4]
[366705812,1750415570710,-490.0,0.00027397,4]
[366705813,1750415570721,-490.0,0.00027397,4]
[366705814,1750415570731,-490.0,0.00027397,4]
[366705815,1750415570740,-1029.22,0.00027397,4]
[366705816,1750415570751,-490.0,0.00027397,4]
[366705817,1750415570761,-490.0,0.00027397,4]
[366705818,1750415570771,-334.39401124,0.00027397,4]
[366705819,1750415570781,-490.0,0.00027397,4]
[366705820,1750415570791,-490.0,0.00027397,4]
[366705821,1750415570801,-490.0,0.00027397,4]
[366705822,1750415570811,-490.0,0.00027397,4]
[366705823,1750415570822,-490.0,0.00027397,4]
[366705824,1750415570831,-490.0,0.00027397,4]
[366705825,1750415570841,-490.0,0.00027397,4]
[366705826,1750415570851,-490.0,0.00027397,4]
[366705827,1750415570860,-817.57,0.00027397,4]
[366705828,1750415570871,-490.0,0.00027397,4]
[366705829,1750415570881,-490.0,0.00027397,4]
[366705830,1750415570891,-490.0,0.00027397,10]
[366705831,1750415570901,-411.30974211,0.00027397,10]
[366705832,1750415570911,-490.0,0.00027397,4]
[366705833,1750415570921,-860.55,0.00027397,4]
[366705834,1750415570931,-473.0415372,0.00027397,4]
[366705835,1750415570941,-490.0,0.00027397,4]
[366705836,1750415570950,-490.0,0.00027397,4]
[366705837,1750415570961,-490.0,0.00027397,4]
[366705838,1750415570971,-490.0,0.00027397,4]
[366705839,1750415570981,-233.30916492,0.00027397,4]
[366705840,1750415570992,-490.0,0.00027397,4]
[366705841,1750415571002,-490.0,0.00027397,4]
[366705842,1750415571011,-490.0,0.00027397,4]
[366705843,1750415571022,-490.0,0.00027397,4]
[366705844,1750415571032,-490.0,0.00027397,4]
[366705845,1750415571042,-490.0,0.00027397,4]
[366705846,1750415571052,-490.0,0.00027397,4]
[366705847,1750415571062,-490.0,0.00027397,4]
[366705848,1750415571072,-490.0,0.00027397,4]
[366705849,1750415571082,-650.85,0.00027397,4]
[366705850,1750415571092,-490.0,0.00027397,4]
[366705851,1750415571103,-490.0,0.00027397,4]
[366705852,1750415571113,-490.0,0.00027397,4]
[366705853,1750415571122,-666.55,0.00027397,4]
[366705854,1750415571133,-490.0,0.00027397,4]
[366705855,1750415571142,-490.0,0.00027397,4]
[366705856,1750415571152,-490.0,0.00027397,4]
[366705857,1750415571163,-490.0,0.00027397,4]
[366705858,1750415571173,-413.85322185,0.00027397,4]
[366705859,1750415571184,-490.0,0.00027397,4]
[366705860,1750415571195,-2000.0,0.00027397,30]
[366705861,1750415571206,-2000.0,0.00027397,30]
[366705862,1750415571215,-490.0,0.00027397,4]
[366705863,1750415571226,-2000.0,0.00027397,30]
[366705864,1750415571236,-2010.18132029,0.00027397,30]
[366705865,1750415571246,-490.0,0.00027397,4]
[366705866,1750415571256,-490.0,0.00027397,4]
[366705867,1750415571266,-490.0,0.00027397,4]
[366705868,1750415571277,-490.0,0.00027397,4]
[366705869,1750415571286,-490.0,0.00027397,4]
[366705870,1750415571296,-497.02,0.00027397,4]
[366705871,1750415571307,-490.0,0.00027397,4]
[366705872,1750415571317,-490.0,0.00027397,4]
[366705873,1750415571328,-561.45,0.00027397,4]
[366705874,1750415571338,-490.0,0.00027397,4]
[366705875,1750415571349,-490.0,0.00027397,4]
[366705876,1750415571359,-490.0,0.00027397,4]
[366705877,1750415571369,-490.0,0.00027397,4]
[366705878,1750415571378,-490.0,0.00027397,4]
[366705879,1750415571388,-673.68,0.00027397,4]
[366705880,1750415571398,-490.0,0.00027397,4]
[366705881,1750415571408,-490.0,0.00027397,4]
[366705882,1750415571418,-798.5,0.00027397,4]
[366705883,1750415571427,-490.0,0.00027397,4]
[366705884,1750415571436,-490.0,0.00027397,4]
[366705885,1750415571446,-490.0,0.00027397,4]
[366705886,1750415571455,-490.0,0.00027397,4]
[366705887,1750415571465,-814.97,0.00027397,4]
[366705888,1750415571475,-490.0,0.00027397,4]
[366705889,1750415571484,-2237.34,0.00027397,4]
[366705890,1750415571494,-490.0,0.00027397,4]
[366705891,1750415571503,-997.34,0.00027397,4]
[366705892,1750415571513,-792.52,0.00027397,4]
[366705893,1750415571522,-490.0,0.00027397,4]
[366705894,1750415571532,-490.0,0.00027397,4]
[366705895,1750415571542,-490.0,0.00027397,4]
[366705896,1750415571552,-749.65,0.00027397,4]
[366705897,1750415571562,-490.0,0.00027397,4]
[366705898,1750415571571,-490.0,0.00027397,4]
[366705899,1750415571581,-490.0,0.00027397,4]
[366705900,1750415571591,-870.19,0.00027397,4]
[366705901,1750415571600,-661.75,0.00027397,4]
[366705902,1750415571610,-490.0,0.00027397,4]
[366705903,1750415571619,-508.02,0.00027397,4]
[366705904,1750415571629,-490.0,0.00027397,4]
[366705905,1750415571638,-490.0,0.00027397,4]
[366705906,1750415571648,-1294.95,0.00027397,4]
[366705907,1750415571657,-490.0,0.00027397,4]
[366705908,1750415571667,-490.0,0.00027397,4]
[366705909,1750415571676,-490.0,0.00027397,4]
[366705910,1750415571686,-860.83,0.00027397,4]
[366705911,1750415571695,-490.0,0.00027397,4]
[366705912,1750415571706,-490.0,0.00027397,4]
[366705913,1750415571717,-686.43,0.00027397,4]
[366705914,1750415571728,-1554.68,0.00027397,4]
[366705915,1750415571738,-490.0,0.00027397,4]
[366705916,1750415571749,-490.0,0.00027397,4]
[366705917,1750415571758,-490.0,0.00027397,4]
[366705918,1750415571768,-490.0,0.00027397,4]
[366705919,1750415571777,-490.0,0.00027397,4]
[366705920,1750415571787,-490.0,0.00027397,4]
[366705921,1750415571798,-620.11,0.00027397,4]
[366705922,1750415571808,-490.0,0.00027397,4]
[366705923,1750415571818,-490.0,0.00027397,4]
[366705924,1750415571828,-591.54,0.00027397,4]
[366705925,1750415571839,-757.27,0.00027397,4]
[366705926,1750415571850,-1692.44,0.00027397,4]
[366705927,1750415571859,-490.0,0.00027397,4]
[366705928,1750415571870,-490.0,0.00027397,4]
[366705929,1750415571879,-1478.21,0.00027397,4]
[366705930,1750415571890,-490.0,0.00027397,4]
[366705931,1750415571899,-1664.77,0.00027397,4]
[366705932,1750415571908,-490.0,0.00027397,4]
[366705933,1750415571919,-513.53,0.00027397,4]
[366705934,1750415571928,-1643.07,0.00027397,4]
[366705935,1750415571938,-2421.62,0.00027397,4]
[366705936,1750415571947,-490.0,0.00027397,4]
[366705937,1750415571957,-1002.75,0.00027397,4]
[366705938,1750415571967,-1171.85,0.00027397,4]
[366705939,1750415571977,-490.0,0.00027397,4]
[366705940,1750415571986,-490.0,0.00027397,4]
[366705941,1750415571996,-490.0,0.00027397,4]
[366705942,1750415572006,-490.0,0.00027397,4]
[366705943,1750415572015,-490.0,0.00027397,4]
[366705944,1750415572025,-490.0,0.00027397,4]
[366705945,1750415572035,-490.0,0.00027397,4]
[366705946,1750415572045,-513.94,0.00027397,4]
[366705947,1750415572055,-1052.23,0.00027397,4]
[366705948,1750415572065,-1203.58,0.00027397,4]
[366705949,1750415572075,-1052.12,0.00027397,4]
[366705950,1750415572085,-490.0,0.00027397,4]
[366705951,1750415572095,-1116.54,0.00027397,4]
[366705952,1750415572104,-490.0,0.00027397,4]
[366705953,1750415572114,-490.0,0.00027397,4]
[366705954,1750415572123,-593.05,0.00027397,4]
[366705955,1750415572134,-490.0,0.00027397,4]
[366705956,1750415572144,-713.86,0.00027397,4]
[366705957,1750415572156,-576.72,0.00027397,4]
[366705958,1750415572170,-1207.78,0.00027397,4]
[366705959,1750415572180,-490.0,0.00027397,4]
[366705960,1750415572190,-490.0,0.00027397,4]
[366705961,1750415572200,-885.97,0.00027397,4]
[366705962,1750415572211,-1286.94,0.00027397,4]
[366705963,1750415572221,-774.59,0.00027397,4]
[366705964,1750415572231,-663.64,0.00027397,4]
[366705965,1750415572241,-490.0,0.00027397,4]
[366705966,1750415572253,-490.0,0.00027397,4]
[366705967,1750415572264,-689.38,0.00027397,4]
[366705968,1750415572274,-556.07,0.00027397,4]
[366705969,1750415572284,-490.0,0.00027397,4]
[366705970,1750415572294,-490.0,0.00027397,4]
[366705971,1750415572304,-929.62,0.00027397,4]
[366705972,1750415572313,-852.86,0.00027397,4]
[366705973,1750415572324,-540.11,0.00027397,4]
[366705974,1750415572335,-490.0,0.00027397,4]
[366705975,1750415572672,-490.0,0.00027397,4]
[366705976,1750415572683,-490.0,0.00027397,4]
[366705977,1750415572693,-490.0,0.00027397,4]
[366705978,1750415572703,-549.5,0.00027397,4]
[366705979,1750415572713,-490.0,0.00027397,4]
[366705980,1750415572722,-719.33,0.00027397,4]
[366705981,1750415572733,-490.0,0.00027397,4]
[366705982,1750415572743,-490.0,0.00027397,4]
[366705983,1750415572753,-490.0,0.00027397,4]
[366705984,1750415572764,-1178.9,0.00027397,4]
[366705985,1750415572773,-992.43,0.00027397,4]
[366705986,1750415572783,-490.0,0.00027397,4]
[366705987,1750415572793,-2120.13,0.00027397,4]
[366705988,1750415572802,-490.0,0.00027397,4]
[366705989,1750415572813,-490.0,0.00027397,4]
[366705990,1750415572823,-797.21,0.00027397,4]
[366705991,1750415572832,-2831.45,0.00027397,4]
[366705992,1750415572843,-490.0,0.00027397,4]
[366705993,1750415572852,-1657.46,0.00027397,4]
[366705994,1750415572862,-1176.63,0.00027397,4]
[366705995,1750415572871,-835.13,0.00027397,4]
[366705996,1750415572881,-640.77,0.00027397,4]